fUST/lending_fUST_20251218
["ID","MTS","AMOUNT","RATE_DAILY","PERIOD"]
[398911558,1765987845989,-151.02,0.00036898,60]
[398911560,1765987845998,-152.0,0.000369,120]
[398911562,1765987846008,-594.36991236,0.00036932,9]
[398911564,1765987846017,-151.02,0.00036998,60]
[398911566,1765987846027,-200.0,0.00037,45]
[398911568,1765987846035,-151.02,0.00037098,60]
[398911570,1765987846045,-151.02,0.00037198,60]
[398911572,1765987846054,-151.02,0.00037298,60]
[398911574,1765987846065,-151.02,0.00037398,60]
[398911576,1765987846074,-337.76919336,0.00037452,5]
[398911578,1765987846083,-151.02,0.00037498,60]
[398911580,1765987846092,-152.0,0.000375,120]
[398911582,1765987846101,-151.02,0.00037598,60]
[398911584,1765987846111,-151.02,0.00037698,60]
[398911586,1765987846120,-151.02,0.00037798,60]
[398911588,1765987846129,-415.0,0.00037846,2]
[398911590,1765987846139,-533.48494386,0.0003789,120]
[398911593,1765987846234,-151.07312411,0.00037898,60]
[398911594,1765987846246,-2000.0,0.000379,120]
[398911595,1765987846257,-468.0,0.000379,30]
[398911596,1765987846266,-500.0,0.00038,120]
[398911597,1765987846275,-4718.76648802,0.00038032,120]
[398911598,1765987846284,-2400.0,0.00038032,120]
[398911600,1765987846294,-150.0,0.00038032,2]
[398911602,1765987846303,-500.0,0.00038032,120]
[398911604,1765987846312,-15889.63724104,0.00038032,120]
[398911606,1765987846322,-152.0,0.000381,120]
[398911608,1765987846331,-151.0,0.00038356,120]
[398911610,1765987846339,-151.0,0.00038356,120]
[398911612,1765987846349,-151.0,0.00038356,120]
[398911613,1765987846358,-151.0,0.00038356,120]
[398911615,1765987846367,-151.0,0.00038356,120]
[398911617,1765987846376,-151.0,0.00038356,120]
[398911620,1765987846385,-151.0,0.00038356,120]
[398911622,1765987846394,-151.0,0.00038356,120]
[398911624,1765987846403,-151.0,0.00038356,120]
[398911626,1765987846413,-151.0,0.00038356,120]
[398911627,1765987846422,-151.0,0.00038356,120]
[398911630,1765987846431,-151.0,0.00038356,120]
[398911632,1765987846440,-152.0,0.000388,120]
[398911634,1765987846450,-2000.0,0.000389,120]
[398911636,1765987846460,-151.0,0.00039041,120]
[398911638,1765987846468,-181.74,0.00039041,120]
[398911640,1765987846479,-406.2,0.00039212,30]
[398911642,1765987846487,-152.0,0.000394,120]
[398911644,1765987846496,-200.0,0.0003952,52]
[398911646,1765987846506,-671.388432,0.00039654,2]
[398911648,1765987846518,-562.23562946,0.0003989,120]
[398911650,1765987846527,-2000.0,0.000399,120]
[398911652,1765987846535,-152.0,0.0004,120]
[398911654,1765987846544,-500.0,0.0004,120]
[398911656,1765987846553,-152.0,0.000406,120]
[398911658,1765987846562,-233.2358818,0.00040609,30]
[398911660,1765987846571,-153.0,0.00040609,30]
[398911662,1765987846580,-465.873131,0.00040837,7]
[398911664,1765987846589,-415.0,0.00040846,2]
[398911666,1765987846598,-2000.0,0.000409,120]
[398911669,1765987846607,-15577.13,0.000409,2]
[398911671,1765987846617,-1310.0,0.00040938,20]
[398911673,1765987846625,-18296.9763796,0.00041007,2]
[398911675,1765987846635,-503.0,0.00041032,120]
[398911677,1765987846643,-544.69,0.00041095,20]
[398911679,1765987846653,-180.164655,0.00041095,120]
[398911681,1765987846662,-240.63246166,0.00041095,120]
[398911683,1765987846671,-262.56563207,0.00041095,120]
[398911685,1765987846680,-210.33287192,0.00041095,120]
[398911687,1765987846689,-242.52149325,0.00041095,120]
[398911689,1765987846698,-268.81056956,0.00041095,120]
[398911691,1765987846708,-233.86878248,0.00041095,120]
[398911693,1765987846719,-217.38060901,0.00041095,120]
[398911695,1765987846729,-500.0,0.00041095,120]
[398911697,1765987846738,-321.09993412,0.00041095,120]
[398911699,1765987846747,-431.44974522,0.00041095,120]
[398911701,1765987846756,-333.47525924,0.00041095,120]
[398911703,1765987846765,-313.54623671,0.00041095,120]
[398911705,1765987846775,-298.1319309,0.00041095,120]
[398911707,1765987846784,-419.89979836,0.00041095,120]
[398911709,1765987846793,-408.34756019,0.00041095,120]
[398911711,1765987846802,-378.76071258,0.00041095,120]
[398911713,1765987846811,-424.31487212,0.00041095,120]
[398911715,1765987846823,-296.35777666,0.00041095,120]
[398911717,1765987846832,-394.69854296,0.00041095,120]
[398911719,1765987846841,-385.34720991,0.00041095,60]
[398911721,1765987846850,-630.49569826,0.00041095,120]
[398911723,1765987846859,-305.41469893,0.00041095,120]
[398911725,1765987846869,-406.71139645,0.00041095,120]
[398911727,1765987846878,-254.4,0.00041095,120]
[398911729,1765987846887,-402.30544319,0.00041095,120]
[398911731,1765987846896,-307.35907076,0.00041095,120]
[398911733,1765987846905,-500.29484219,0.00041095,120]
[398911735,1765987846913,-335.2426591,0.00041095,120]
[398911737,1765987846923,-1589.75,0.00041095,120]
[398911739,1765987846932,-651.98,0.00041095,120]
[398911741,1765987846941,-500.0,0.00041095,2]
[398911743,1765987846950,-176.36540794,0.00041095,120]
[398911745,1765987846959,-435.53779643,0.00041095,120]
[398911747,1765987846968,-368.03965533,0.00041095,120]
[398911749,1765987846977,-430.87105275,0.00041095,120]
[398911751,1765987846986,-598.36,0.00041095,120]
[398911753,1765987846996,-1000.0,0.00041095,2]
[398911755,1765987847005,-1914.8,0.00041095,120]
[398911757,1765987847014,-500.0,0.00041095,120]
[398911759,1765987847024,-502.5314475,0.00041095,120]
[398911761,1765987847033,-202.84128778,0.00041095,120]
[398911763,1765987847042,-456.74127527,0.00041095,2]
[398911765,1765987847052,-959.93,0.00041095,30]
[398911767,1765987847062,-393.55270233,0.00041095,120]
[398911769,1765987847073,-500.0,0.00041095,120]
[398911771,1765987847083,-1000.0,0.00041095,60]
[398911773,1765987847091,-192.21169701,0.00041095,30]
[398911776,1765987847101,-274.78048247,0.00041095,120]
[398911778,1765987847112,-414.09045249,0.00041095,120]
[398911780,1765987847122,-342.79576587,0.00041095,120]
[398911782,1765987847131,-267.57127046,0.00041095,120]
[398911784,1765987847141,-297.01641688,0.00041095,120]
[398911786,1765987847150,-559.41930016,0.00041095,120]
[398911787,1765987847159,-500.0,0.00041095,120]
[398911789,1765987847168,-408.34696976,0.00041095,120]
[398911791,1765987847178,-533.96012968,0.00041095,120]
[398911794,1765987847188,-246.51513675,0.00041095,120]
[398911795,1765987847197,-151.0,0.00041095,120]
[398911797,1765987847207,-267.95565497,0.00041095,120]
[398911800,1765987847219,-251.02880627,0.00041095,120]
[398911802,1765987847229,-264.67329011,0.00041095,120]
[398911804,1765987847238,-222.28470751,0.00041095,120]
[398911806,1765987847247,-282.92751427,0.00041095,120]
[398911808,1765987847258,-301.02431615,0.00041095,120]
[398911810,1765987847267,-500.0,0.00041095,120]
[398911812,1765987847276,-295.72451098,0.00041095,120]
[398911813,1765987847287,-206.79796131,0.00041095,60]
[398911815,1765987847296,-584.67372922,0.00041095,120]
[398911818,1765987847306,-151.0,0.00041095,120]
[398911820,1765987847317,-635.05573808,0.00041095,120]
[398911822,1765987847326,-156.529842,0.00041095,120]
[398911824,1765987847334,-156.529842,0.00041095,120]
[398911825,1765987847343,-156.529842,0.00041095,120]
[398911827,1765987847352,-156.529842,0.00041095,120]
[398911829,1765987847361,-422.35721787,0.00041095,120]
[398911831,1765987847370,-303.68505629,0.00041095,120]
[398911833,1765987847379,-151.0,0.00041095,120]
[398911835,1765987847388,-500.0,0.00041095,120]
[398911837,1765987847398,-151.0,0.00041095,120]
[398911839,1765987847407,-448.18981796,0.00041095,120]
[398911841,1765987847418,-151.0,0.00041095,120]
[398911844,1765987847428,-546.17174104,0.00041095,120]
[398911846,1765987847438,-411.66531058,0.00041095,120]
[398911848,1765987847447,-202.67696162,0.00041095,120]
[398911850,1765987847457,-500.0,0.00041095,120]
[398911852,1765987847465,-500.0,0.00041095,120]
[398911854,1765987847474,-500.0,0.00041095,120]
[398911855,1765987847483,-1162.863707,0.00041095,28]
[398911858,1765987847493,-1162.863707,0.00041095,28]
[398911859,1765987847503,-500.0,0.00041095,120]
[398911862,1765987847513,-1162.863707,0.00041095,28]
[398911864,1765987847522,-430.08,0.00041095,60]
[398911866,1765987847532,-1162.863707,0.00041095,28]
[398911868,1765987847542,-208.51051132,0.00041095,120]
[398911870,1765987847551,-219.28881681,0.00041095,120]
[398911872,1765987847560,-275.9887587,0.00041095,120]
[398911874,1765987847571,-465.80609359,0.00041095,120]
[398911876,1765987847580,-500.0,0.00041095,120]
[398911878,1765987847590,-305.6792939,0.00041095,120]
[398911880,1765987847599,-13868.39,0.00041095,120]
[398911882,1765987847608,-151.0,0.00041095,120]
[398911884,1765987847617,-151.0,0.00041095,120]
[398911886,1765987847626,-2858.93,0.00041095,2]
[398911888,1765987847637,-500.0,0.00041095,120]
[398911890,1765987847646,-431.72712065,0.00041095,120]
[398911892,1765987847655,-500.0,0.00041095,120]
[398911894,1765987847664,-1678.24,0.00041095,120]
[398911896,1765987847673,-500.0,0.00041095,120]
[398911898,1765987847682,-260.98614615,0.00041095,120]
[398911900,1765987847691,-500.0,0.00041095,120]
[398911901,1765987847700,-359.99915768,0.00041095,120]
[398911904,1765987847711,-314.95357646,0.00041095,120]
[398911906,1765987847720,-1098.22,0.00041095,120]
[398911908,1765987847731,-376.47901482,0.00041095,120]
[398911910,1765987847741,-695.03,0.00041095,120]
[398911912,1765987847751,-368.63638014,0.00041095,120]
[398911914,1765987847761,-177.36183431,0.00041095,120]
[398911916,1765987847771,-500.0,0.00041095,120]
[398911917,1765987847780,-500.0,0.00041095,120]
[398911919,1765987847790,-225.14947174,0.00041095,120]
[398911922,1765987847799,-500.0,0.00041095,120]
[398911924,1765987847809,-370.45489296,0.00041095,120]
[398911926,1765987847823,-500.0,0.00041095,120]
[398911928,1765987847834,-359.50982841,0.00041095,120]
[398911930,1765987847843,-500.0,0.00041095,120]
[398911932,1765987847853,-437.28067528,0.00041095,120]
[398911934,1765987847863,-10151.96,0.00041095,3]
[398911935,1765987847872,-500.0,0.00041096,120]
[398911937,1765987847882,-1000.0,0.00041118,60]
[398911939,1765987847891,-1000.0,0.00041141,60]
[398911941,1765987847901,-1000.0,0.00041164,60]
[398911943,1765987847910,-1000.0,0.00041186,60]
[398911946,1765987847920,-1000.0,0.00041209,60]
[398911947,1765987847929,-1000.0,0.00041232,60]
[398911949,1765987847939,-1000.0,0.00041255,60]
[398911951,1765987847948,-2000.89369028,0.00041269,2]
[398911953,1765987847958,-1000.0,0.00041278,60]
[398911955,1765987847967,-152.0,0.000413,120]
[398911957,1765987847976,-1000.0,0.00041301,60]
[398911959,1765987847987,-1000.0,0.00041323,60]
[398911961,1765987848000,-1000.0,0.00041346,60]
[398911963,1765987848021,-544.69,0.00041369,20]
[398911965,1765987848042,-500.0,0.00041369,120]
[398911967,1765987848065,-1589.75,0.00041369,120]
[398911969,1765987848079,-651.98,0.00041369,120]
[398911971,1765987848088,-500.0,0.00041369,2]
[398911973,1765987848098,-598.36,0.00041369,120]
[398911975,1765987848107,-1003.53695948,0.00041369,2]
[398911977,1765987848116,-1914.8,0.00041369,120]
[398911979,1765987848125,-151.0,0.00041369,60]
[398911981,1765987848134,-151.0,0.00041369,120]
[398911983,1765987848144,-151.0,0.00041369,60]
[398911985,1765987848154,-500.0,0.00041369,120]
[398911987,1765987848163,-151.0,0.00041369,120]
[398911989,1765987848172,-151.0,0.00041369,120]
[398911991,1765987848182,-255.852592,0.00041369,120]
[398911993,1765987848191,-192.89092,0.00041369,120]
[398911995,1765987848200,-500.0,0.00041369,120]
[398911997,1765987848210,-367.23243121,0.00041369,120]
[398911999,1765987848221,-500.0,0.00041369,120]
[398912001,1765987848230,-500.0,0.00041369,120]
[398912003,1765987848239,-209.33377746,0.00041369,120]
[398912005,1765987848250,-212.18143999,0.00041369,120]
[398912007,1765987848259,-268.78261745,0.00041369,120]
[398912009,1765987848269,-500.0,0.00041369,120]
[398912011,1765987848278,-500.0,0.00041369,120]
[398912013,1765987848289,-13868.39,0.00041369,120]
[398912016,1765987848298,-2858.93,0.00041369,2]
[398912017,1765987848307,-339.43283925,0.00041369,120]
[398912020,1765987848319,-500.0,0.00041369,120]
[398912022,1765987848328,-1678.24,0.00041369,120]
[398912024,1765987848337,-204.10238869,0.00041369,120]
[398912025,1765987848347,-296.58567619,0.00041369,120]
[398912028,1765987848356,-1098.22,0.00041369,120]
[398912030,1765987848365,-695.03,0.00041369,120]
[398912032,1765987848374,-500.0,0.00041369,120]
[398912033,1765987848383,-262.73529591,0.00041369,120]
[398912035,1765987848392,-500.0,0.00041369,120]
[398912037,1765987848402,-349.20343344,0.00041369,120]
[398912040,1765987848411,-415.7114229,0.00041369,120]
[398912041,1765987848420,-10151.96,0.00041369,3]
[398912043,1765987848429,-984.58689977,0.00041369,60]
[398912045,1765987848438,-153.0,0.00041431,30]
[398912047,1765987848447,-153.0,0.00041431,30]
[398912049,1765987848456,-153.0,0.00041431,30]
[398912051,1765987848465,-153.0,0.00041431,30]
[398912053,1765987848474,-306.0,0.00041431,30]
[398912055,1765987848483,-544.69,0.00041643,20]
[398912057,1765987848492,-500.0,0.00041643,120]
[398912059,1765987848501,-1589.75,0.00041643,120]
[398912061,1765987848510,-651.98,0.00041643,120]
[398912063,1765987848519,-500.0,0.00041643,2]
[398912065,1765987848528,-151.0,0.00041643,120]
[398912067,1765987848537,-598.36,0.00041643,120]
[398912069,1765987848546,-1914.8,0.00041643,120]
[398912071,1765987848558,-500.0,0.00041643,120]
[398912073,1765987848567,-151.0,0.00041643,120]
[398912085,1765987848671,-151.0,0.00041643,120]
[398912087,1765987848681,-151.0,0.00041643,120]
[398912089,1765987848691,-151.0,0.00041643,120]
[398912091,1765987848700,-151.0,0.00041643,120]
[398912093,1765987848710,-151.0,0.00041643,120]
[398912095,1765987848718,-221.738177,0.00041643,120]
[398912097,1765987848727,-297.748689,0.00041643,120]
[398912099,1765987848737,-959.93,0.00041643,35]
[398912100,1765987848747,-500.0,0.00041643,120]
[398912103,1765987848756,-500.0,0.00041643,120]
[398912104,1765987848765,-500.0,0.00041643,120]
[398912106,1765987848774,-500.0,0.00041643,120]
[398912108,1765987848784,-500.0,0.00041643,120]
[398912111,1765987848793,-13868.39,0.00041643,120]
[398912112,1765987848803,-2858.93,0.00041643,2]
[398912114,1765987848812,-500.0,0.00041643,120]
[398912116,1765987848825,-1678.24,0.00041643,120]
[398912118,1765987848834,-1098.22,0.00041643,120]
[398912120,1765987848844,-695.03,0.00041643,120]
[398912122,1765987848852,-500.0,0.00041643,120]
[398912124,1765987848864,-500.0,0.00041643,120]
[398912126,1765987848873,-10151.96,0.00041643,3]
[398912128,1765987848882,-500.0,0.00041644,120]
[398912130,1765987848891,-1500.0,0.000418,30]
[398912132,1765987848899,-1500.0,0.000418,30]
[398912134,1765987848908,-1500.0,0.000418,2]
[398912136,1765987848917,-1500.0,0.000418,2]
[398912138,1765987848926,-1500.0,0.000418,2]
[398912140,1765987848935,-561.1,0.000418,2]
[398912142,1765987848943,-172.29,0.000418,120]
[398912144,1765987848952,-7291.09016991,0.00041817,2]
[398912146,1765987848961,-590.98631505,0.0004189,120]
[398912148,1765987848970,-1500.0,0.000419,2]
[398912150,1765987848978,-1500.0,0.000419,30]
[398912151,1765987848988,-1500.0,0.000419,30]
[398912153,1765987848997,-1500.0,0.000419,30]
[398912155,1765987849006,-1500.0,0.000419,30]
[398912157,1765987849016,-1500.0,0.000419,30]
[398912159,1765987849025,-2000.0,0.000419,120]
[398912161,1765987849034,-152.0,0.000419,120]
[398912163,1765987849043,-5507.72,0.000419,14]
[398912165,1765987849052,-151.0,0.000419,120]
[398912167,1765987849060,-151.0,0.000419,120]
[398912169,1765987849070,-151.0,0.000419,120]
[398912171,1765987849079,-544.69,0.00041917,20]
[398912173,1765987849088,-500.0,0.00041917,120]
[398912175,1765987849098,-1589.75,0.00041917,120]
[398912177,1765987849107,-651.98,0.00041917,120]
[398912179,1765987849116,-500.0,0.00041917,2]
[398912180,1765987849125,-598.36,0.00041917,120]
[398912182,1765987849135,-1914.8,0.00041917,120]
[398912184,1765987849144,-500.0,0.00041917,120]
[398912186,1765987849153,-500.0,0.00041917,120]
[398912188,1765987849163,-647.32997919,0.00041917,120]
[398912190,1765987849172,-500.0,0.00041917,120]
[398912192,1765987849182,-500.0,0.00041917,120]
[398912194,1765987849191,-500.0,0.00041917,120]
[398912196,1765987849201,-13868.39,0.00041917,120]
[398912198,1765987849213,-2858.93,0.00041917,2]
[398912200,1765987849222,-500.0,0.00041917,120]
[398912202,1765987849232,-1678.24,0.00041917,120]
[398912204,1765987849241,-1098.22,0.00041917,120]
[398912206,1765987849251,-695.03,0.00041917,120]
[398912208,1765987849261,-500.0,0.00041917,120]
[398912210,1765987849272,-500.0,0.00041917,120]
[398912212,1765987849283,-627921.2,0.00042,120]
[398912214,1765987849292,-4277.0,0.00042,2]
[398912216,1765987849301,-151.0,0.00042,120]
[398912218,1765987849311,-151.0,0.00042,60]
[398912220,1765987849321,-151.0,0.00042,120]
[398912222,1765987849329,-151.0,0.00042,60]
[398912224,1765987849338,-151.0,0.00042,120]
[398912226,1765987849347,-151.0,0.00042,120]
[398912227,1765987849356,-151.0,0.00042,120]
[398912229,1765987849365,-151.0,0.00042,120]
[398912231,1765987849374,-151.0,0.00042,120]
[398912233,1765987849384,-151.0,0.00042,120]
[398912235,1765987849392,-151.0,0.00042,120]
[398912237,1765987849402,-151.0,0.00042,120]
[398912239,1765987849411,-151.0,0.00042,120]
[398912241,1765987849421,-151.0,0.00042,120]
[398912243,1765987849430,-156.529842,0.00042,120]
[398912245,1765987849439,-156.529842,0.00042,120]
[398912247,1765987849449,-156.529842,0.00042,120]
[398912249,1765987849458,-156.529842,0.00042,120]
[398912251,1765987849468,-151.0,0.00042,120]
[398912253,1765987849477,-151.0,0.00042,120]
[398912255,1765987849487,-151.0,0.00042,120]
[398912257,1765987849496,-500.0,0.00042,120]
[398912259,1765987849505,-1162.863707,0.00042,28]
[398912261,1765987849515,-1162.863707,0.00042,28]
[398912263,1765987849524,-1162.863707,0.00042,28]
[398912264,1765987849533,-1162.863707,0.00042,28]
[398912266,1765987849543,-151.0,0.00042,120]
[398912268,1765987849552,-151.0,0.00042,120]
[398912270,1765987849561,-151.0,0.00042,120]
[398912272,1765987849571,-151.0,0.00042,120]
[398912274,1765987849580,-151.0,0.00042,120]
[398912276,1765987849589,-200.0,0.0004203,59]
[398912278,1765987849599,-504.0,0.00042032,120]
[398912279,1765987849608,-3324.1811899,0.0004204,28]
[398912281,1765987849618,-544.69,0.00042191,20]
[398912283,1765987849627,-500.0,0.00042191,120]
[398912285,1765987849636,-1589.75,0.00042191,120]
[398912287,1765987849645,-651.98,0.00042191,120]
[398912289,1765987849654,-297.42781132,0.00042191,2]
[398912291,1765987849663,-598.36,0.00042191,120]
[398912293,1765987849672,-1914.8,0.00042191,120]
[398912295,1765987849682,-500.0,0.00042191,120]
[398912297,1765987849690,-959.93,0.00042191,40]
[398912299,1765987849699,-500.0,0.00042191,120]
[398912301,1765987849708,-500.0,0.00042191,120]
[398912303,1765987849717,-500.0,0.00042191,120]
[398912305,1765987849728,-500.0,0.00042191,120]
[398912307,1765987849737,-13868.39,0.00042191,120]
[398912309,1765987849747,-2858.93,0.00042191,2]
[398912311,1765987849756,-500.0,0.00042191,120]
[398912313,1765987849765,-1678.24,0.00042191,120]
[398912315,1765987849774,-1098.22,0.00042191,120]
[398912317,1765987849783,-695.03,0.00042191,120]
[398912319,1765987849792,-500.0,0.00042191,120]
[398912321,1765987849802,-500.0,0.00042191,120]
[398912323,1765987849811,-177.64021355,0.000422,120]
[398912324,1765987849819,-168.94036194,0.000422,120]
[398912326,1765987849829,-265.17968309,0.000422,120]
[398912328,1765987849838,-176.38130533,0.000422,120]
[398912330,1765987849847,-544.69,0.00042465,20]
[398912332,1765987849856,-500.0,0.00042465,120]
[398912334,1765987849865,-1589.75,0.00042465,120]
[398912336,1765987849875,-651.98,0.00042465,120]
[398912338,1765987849885,-598.36,0.00042465,120]
[398912340,1765987849894,-1914.8,0.00042465,120]
[398912342,1765987849903,-500.0,0.00042465,120]
[398912344,1765987849912,-500.0,0.00042465,120]
[398912346,1765987849922,-500.0,0.00042465,120]
[398912348,1765987849932,-500.0,0.00042465,120]
[398912350,1765987849941,-481.46770977,0.00042465,120]
[398912352,1765987849951,-13868.39,0.00042465,120]
[398912354,1765987849960,-2858.93,0.00042465,2]
[398912356,1765987849969,-500.0,0.00042465,120]
[398912358,1765987849979,-1678.24,0.00042465,120]
[398912360,1765987849988,-1098.22,0.00042465,120]
[398912362,1765987849998,-695.03,0.00042465,120]
[398912364,1765987850008,-500.0,0.00042465,120]
[398912366,1765987850018,-500.0,0.00042465,120]
[398912368,1765987850028,-578.385922,0.00042466,120]
[398912370,1765987850038,-578.385922,0.00042466,120]
[398912372,1765987850047,-578.385922,0.00042466,120]
[398912374,1765987850056,-578.385922,0.00042466,120]
[398912376,1765987850067,-578.385922,0.00042466,120]
[398912378,1765987850077,-578.385922,0.00042466,120]
[398912380,1765987850087,-578.385922,0.00042466,120]
[398912381,1765987850096,-578.385922,0.00042466,120]
[398912384,1765987850106,-578.385922,0.00042466,120]
[398912385,1765987850116,-578.385922,0.00042466,120]
[398912387,1765987850125,-578.385922,0.00042466,120]
[398912389,1765987850135,-578.385922,0.00042466,120]
[398912392,1765987850145,-578.385922,0.00042466,120]
[398912393,1765987850155,-578.385922,0.00042466,120]
[398912395,1765987850164,-578.385922,0.00042466,120]
[398912397,1765987850174,-578.385922,0.00042466,120]
[398912399,1765987850184,-152.0,0.000425,120]
[398912401,1765987850193,-16889.06,0.000427,2]
[398912403,1765987850203,-544.69,0.00042739,20]
[398912405,1765987850215,-500.0,0.00042739,120]
[398912407,1765987850224,-1589.75,0.00042739,120]
[398912409,1765987850233,-651.98,0.00042739,120]
[398912411,1765987850243,-598.36,0.00042739,120]
[398912413,1765987850252,-1914.8,0.00042739,120]
[398912415,1765987850263,-500.0,0.00042739,120]
[398912417,1765987850272,-959.93,0.00042739,45]
[398912419,1765987850281,-500.0,0.00042739,120]
[398912421,1765987850292,-500.0,0.00042739,120]
[398912423,1765987850302,-500.0,0.00042739,120]
[398912425,1765987850311,-13868.39,0.00042739,120]
[398912427,1765987850321,-2858.93,0.00042739,2]
[398912429,1765987850331,-500.0,0.00042739,120]
[398912431,1765987850340,-1678.24,0.00042739,120]
[398912433,1765987850349,-1098.22,0.00042739,120]
[398912435,1765987850359,-695.03,0.00042739,120]
[398912437,1765987850369,-500.0,0.00042739,120]
[398912439,1765987850378,-500.0,0.00042739,120]
[398912441,1765987850388,-105934.16349161,0.000429,120]
[398912443,1765987850397,-2000.0,0.000429,120]
[398912444,1765987850406,-151.0,0.000429,120]
[398912446,1765987850416,-151.0,0.000429,60]
[398912448,1765987850426,-254.456966,0.000429,120]
[398912450,1765987850436,-151.0,0.000429,60]
[398912452,1765987850446,-151.0,0.000429,120]
[398912454,1765987850457,-151.0,0.000429,120]
[398912456,1765987850466,-240.913267,0.000429,120]
[398912458,1765987850475,-578.385922,0.000429,120]
[398912460,1765987850484,-151.0,0.000429,120]
[398912462,1765987850494,-578.385922,0.000429,120]
[398912464,1765987850503,-578.385922,0.000429,120]
[398912466,1765987850512,-156.529842,0.000429,120]
[398912468,1765987850522,-578.385928,0.000429,120]
[398912470,1765987850531,-156.529842,0.000429,120]
[398912472,1765987850540,-156.529842,0.000429,120]
[398912474,1765987850550,-156.529851,0.000429,120]
[398912476,1765987850558,-168.149431,0.000429,120]
[398912478,1765987850568,-151.0,0.000429,120]
[398912480,1765987850579,-221.765393,0.000429,120]
[398912482,1765987850588,-1162.863707,0.000429,28]
[398912484,1765987850597,-1162.863707,0.000429,28]
[398912485,1765987850606,-1162.863707,0.000429,28]
[398912487,1765987850615,-1162.863711,0.000429,28]
[398912489,1765987850625,-151.0,0.000429,120]
[398912491,1765987850634,-151.0,0.000429,120]
[398912493,1765987850644,-288.33499842,0.00043,120]
[398912495,1765987850652,-544.69,0.00043013,20]
[398912497,1765987850662,-500.0,0.00043013,120]
[398912499,1765987850671,-1589.75,0.00043013,120]
[398912501,1765987850680,-651.98,0.00043013,120]
[398912503,1765987850689,-598.36,0.00043013,120]
[398912505,1765987850699,-1914.8,0.00043013,120]
[398912507,1765987850708,-398.5,0.00043013,120]
[398912509,1765987850717,-500.0,0.00043013,120]
[398912511,1765987850727,-500.0,0.00043013,120]
[398912513,1765987850736,-500.0,0.00043013,120]
[398912515,1765987850745,-13868.39,0.00043013,120]
[398912517,1765987850754,-2858.93,0.00043013,2]
[398912519,1765987850763,-1678.24,0.00043013,120]
[398912524,1765987850852,-1098.22,0.00043013,120]
[398912525,1765987850861,-695.03,0.00043013,120]
[398912526,1765987850871,-151.0,0.00043013,120]
[398912527,1765987850879,-151.0,0.00043013,120]
[398912528,1765987850888,-293.573713,0.00043013,120]
[398912529,1765987850897,-500.0,0.00043013,120]
[398912530,1765987850906,-500.0,0.00043013,120]
[398912531,1765987850915,-152.0,0.000431,120]
[398912532,1765987850924,-544.69,0.00043287,20]
[398912533,1765987850933,-500.0,0.00043287,120]
[398912534,1765987850942,-1589.75,0.00043287,120]
[398912535,1765987850950,-651.98,0.00043287,120]
[398912536,1765987850959,-598.36,0.00043287,120]
[398912537,1765987850968,-1914.8,0.00043287,120]
[398912538,1765987850977,-959.93,0.00043287,50]
[398912539,1765987850985,-500.0,0.00043287,120]
[398912540,1765987850995,-500.0,0.00043287,120]